fUSD/lending_fUSD_20250811
["ID","MTS","AMOUNT","RATE_DAILY","PERIOD"]
[378659110,1754946644846,-1027.87910058,0.00016465,2]
[378659112,1754946644856,-151.0,0.00016465,2]
[378659115,1754946644865,-151.0,0.00016465,2]
[378659117,1754946644874,-151.0,0.00016465,2]
[378659119,1754946644883,-233.53240391,0.00016465,2]
[378659121,1754946644893,-151.0,0.00016465,2]
[378659122,1754946644903,-282.54948572,0.00016465,2]
[378659125,1754946644912,-151.0,0.00016465,2]
[378659127,1754946644921,-151.0,0.00016465,2]
[378659129,1754946644931,-151.0,0.00016465,2]
[378659130,1754946644941,-157.13155533,0.00016465,2]
[378659133,1754946644951,-151.0,0.00016473,2]
[378659135,1754946644960,-168.0,0.00016485,2]
[378659137,1754946644970,-168.0,0.00016493,2]
[378659139,1754946644979,-500.0,0.00016493,2]
[378659141,1754946644988,-169.0,0.0001651,2]
[378659143,1754946644997,-6963.36599024,0.00016512,2]
[378659145,1754946645007,-151.0,0.00016529,2]
[378659147,1754946645016,-251.634791,0.00016529,2]
[378659149,1754946645026,-151.0,0.00016529,2]
[378659151,1754946645035,-153.0,0.00016541,2]
[378659153,1754946645044,-151.0,0.00016541,2]
[378659154,1754946645054,-1216.0,0.00016541,2]
[378659156,1754946645063,-1212.0,0.00016541,2]
[378659158,1754946645072,-1216.0,0.00016541,2]
[378659160,1754946645082,-1216.0,0.00016541,2]
[378659162,1754946645091,-1216.0,0.00016541,2]
[378659165,1754946645100,-1216.0,0.00016541,2]
[378659167,1754946645109,-932.18672296,0.00016541,2]
[378659169,1754946645119,-151.0,0.00016541,2]
[378659170,1754946645128,-164.11802654,0.00016541,2]
[378659173,1754946645137,-151.71444599,0.00016541,2]
[378659174,1754946645146,-1216.0,0.00016541,2]
[378659176,1754946645155,-200.0,0.00016602,2]
[378659178,1754946645165,-200.0,0.00016602,2]
[378659180,1754946645174,-157.90897398,0.00016612,2]
[378659182,1754946645183,-175.82769713,0.00016612,2]
[378659185,1754946645193,-842.86497659,0.00016615,2]
[378659187,1754946645202,-457.87080987,0.00016616,2]
[378659188,1754946645211,-211.73953792,0.00016616,2]
[378659190,1754946645221,-4399.0,0.00016629,2]
[378659193,1754946645230,-893.0,0.00016637,2]
[378659194,1754946645239,-1171.0,0.00016637,2]
[378659197,1754946645249,-4145.0,0.00016646,2]
[378659199,1754946645258,-1853.35723424,0.00016646,2]
[378659246,1754946645683,-855.21320353,0.00016646,2]
[378659248,1754946645695,-10164.21672727,0.00016646,2]
[378659250,1754946645707,-988.74135706,0.00016646,2]
[378659252,1754946645718,-1574.396,0.00016646,2]
[378659254,1754946645730,-3574.90497624,0.00016646,2]
[378659256,1754946645742,-894.894001,0.00016646,2]
[378659259,1754946645759,-1555.27650066,0.00016646,2]
[378659261,1754946645769,-5905.13821354,0.00016646,2]
[378659263,1754946645780,-176.86178646,0.00016646,2]
[378659265,1754946645789,-92.65263455,0.00016646,2]
[378659269,1754946645820,-623.34736545,0.00016646,2]
[378659271,1754946645835,-541.33155,0.0001665,2]
[378659273,1754946645845,-275.35,0.00016682,2]
[378659275,1754946645856,-500.0,0.00016685,2]
[378659277,1754946645866,-816.94251961,0.00016685,2]
[378659279,1754946645877,-2020.60253773,0.00016685,2]
[378659281,1754946645888,-4125.8209329,0.00016685,2]
[378659283,1754946645898,-827.17305803,0.00016694,2]
[378659285,1754946645907,-1000.0,0.000167,2]
[378659287,1754946645917,-952.24,0.000167,2]
[378659323,1754946645926,-173.27,0.000167,2]
[378659327,1754946646253,-162.37,0.000167,2]
[378659329,1754946646263,-795.91,0.000167,2]
[378659330,1754946646272,-2360.1,0.000167,2]
[378659332,1754946646281,-796.99,0.000167,2]
[378659334,1754946646291,-456.57,0.000167,2]
[378659336,1754946646301,-151.07,0.000167,2]
[378659338,1754946646310,-326.41,0.000167,2]
[378659340,1754946646319,-1181.7,0.000167,2]
[378659341,1754946646328,-467.7,0.000167,2]
[378659343,1754946646338,-301.77,0.000167,2]
[378659345,1754946646347,-715.68,0.000167,2]
[378659347,1754946646357,-168.89,0.000167,2]
[378659349,1754946646366,-300.87,0.000167,2]
[378659350,1754946646375,-300.0,0.00016711,2]
[378659352,1754946646384,-300.0,0.00016711,2]
[378659354,1754946646394,-371.19188265,0.00016711,2]
[378659356,1754946646403,-150.0,0.00016712,2]
[378659358,1754946646413,-150.0,0.00016712,2]
[378659359,1754946646422,-150.0,0.00016712,2]
[378659361,1754946646431,-500.0,0.00016712,2]
[378659363,1754946646440,-150.0,0.00016712,2]
[378659365,1754946646449,-500.0,0.00016712,2]
[378659367,1754946646458,-200.77175326,0.00016712,2]
[378659368,1754946646468,-150.0,0.00016712,2]
[378659370,1754946646477,-200.0,0.00016712,2]
[378659372,1754946646487,-500.0,0.00016712,2]
[378659374,1754946646496,-150.0,0.00016712,2]
[378659376,1754946646506,-150.0,0.00016712,2]
[378659378,1754946646515,-150.0,0.00016712,2]
[378659379,1754946646525,-150.0,0.00016712,2]
[378659381,1754946646534,-500.0,0.00016712,2]
[378659383,1754946646544,-500.0,0.00016712,2]
[378659385,1754946646553,-151.0,0.00016712,2]
[378659387,1754946646563,-267.090328,0.00016712,2]
[378659389,1754946646572,-151.0,0.00016712,2]
[378659391,1754946646582,-151.0,0.00016712,2]
[378659393,1754946646593,-400.0,0.00016712,2]
[378659395,1754946646604,-151.0,0.00016712,2]
[378659396,1754946646614,-400.0,0.00016712,2]
[378659398,1754946646623,-400.0,0.00016712,2]
[378659400,1754946646633,-400.0,0.00016712,2]
[378659402,1754946646642,-400.0,0.00016712,2]
[378659404,1754946646651,-400.0,0.00016712,2]
[378659406,1754946646661,-400.0,0.00016712,2]
[378659407,1754946646670,-400.0,0.00016712,2]
[378659409,1754946646680,-400.0,0.00016712,2]
[378659411,1754946646689,-151.0,0.00016712,2]
[378659413,1754946646700,-400.0,0.00016712,2]
[378659414,1754946646709,-400.0,0.00016712,2]
[378659416,1754946646718,-400.0,0.00016712,2]
[378659418,1754946646733,-151.0,0.00016712,2]
[378659420,1754946646742,-400.0,0.00016712,2]
[378659422,1754946646753,-314.6230725,0.00016712,2]
[378659424,1754946646765,-400.0,0.00016712,2]
[378659426,1754946646774,-400.0,0.00016712,2]
[378659428,1754946646783,-400.0,0.00016712,2]
[378659429,1754946646792,-400.0,0.00016712,2]
[378659431,1754946646802,-400.0,0.00016712,2]
[378659433,1754946646812,-436.59,0.00016712,2]
[378659435,1754946646821,-407.3,0.00016712,2]
[378659436,1754946646831,-400.0,0.00016712,2]
[378659438,1754946646840,-1083.23,0.00016712,2]
[378659440,1754946646850,-400.0,0.00016712,2]
[378659442,1754946646861,-1056.08,0.00016712,2]
[378659444,1754946646870,-1056.08,0.00016712,2]
[378659446,1754946646879,-400.0,0.00016712,2]
[378659448,1754946646889,-400.0,0.00016712,2]
[378659450,1754946646899,-400.0,0.00016712,2]
[378659452,1754946646908,-400.0,0.00016712,2]
[378659454,1754946646917,-400.0,0.00016712,2]
[378659456,1754946646927,-400.0,0.00016712,2]
[378659457,1754946646936,-300.0,0.00016712,2]
[378659459,1754946646945,-400.0,0.00016712,2]
[378659461,1754946646954,-151.0,0.00016712,2]
[378659463,1754946646964,-151.0,0.00016712,2]
[378659465,1754946646974,-1987.44,0.00016712,2]
[378659467,1754946646983,-400.0,0.00016712,2]
[378659469,1754946646992,-400.0,0.00016712,2]
[378659471,1754946647002,-400.0,0.00016712,2]
[378659473,1754946647011,-400.0,0.00016712,2]
[378659474,1754946647020,-400.0,0.00016712,2]
[378659476,1754946647029,-400.0,0.00016712,2]
[378659478,1754946647039,-681.98,0.00016712,2]
[378659480,1754946647048,-400.0,0.00016712,2]
[378659482,1754946647057,-400.0,0.00016712,2]
[378659484,1754946647067,-400.0,0.00016712,2]
[378659486,1754946647076,-767.16,0.00016712,2]
[378659488,1754946647085,-1579.38,0.00016712,2]
[378659490,1754946647095,-400.0,0.00016712,2]
[378659491,1754946647105,-453.71439567,0.00016712,2]
[378659493,1754946647115,-451.35,0.00016712,2]
[378659495,1754946647124,-400.0,0.00016712,2]
[378659497,1754946647133,-400.0,0.00016712,2]
[378659499,1754946647143,-400.0,0.00016712,2]
[378659501,1754946647152,-400.0,0.00016712,2]
[378659503,1754946647161,-400.0,0.00016712,2]
[378659505,1754946647170,-1021.01,0.00016712,2]
[378659507,1754946647180,-400.0,0.00016712,2]
[378659508,1754946647189,-400.0,0.00016712,2]
[378659510,1754946647199,-400.0,0.00016712,2]
[378659512,1754946647208,-500.84,0.00016712,2]
[378659514,1754946647217,-400.0,0.00016712,2]
[378659516,1754946647226,-400.0,0.00016712,2]
[378659518,1754946647235,-400.0,0.00016712,2]
[378659520,1754946647244,-400.0,0.00016712,2]
[378659522,1754946647254,-400.0,0.00016712,2]
[378659523,1754946647263,-400.0,0.00016712,2]
[378659525,1754946647272,-400.0,0.00016712,2]
[378659527,1754946647281,-400.0,0.00016712,2]
[378659529,1754946647290,-400.0,0.00016712,2]
[378659531,1754946647299,-577.68,0.00016712,2]
[378659533,1754946647308,-400.0,0.00016712,2]
[378659534,1754946647318,-833.48,0.00016712,2]
[378659536,1754946647327,-400.0,0.00016712,2]
[378659538,1754946647336,-400.0,0.00016712,2]
[378659540,1754946647345,-400.0,0.00016712,2]
[378659542,1754946647355,-400.0,0.00016712,2]
[378659544,1754946647364,-400.0,0.00016712,2]
[378659546,1754946647373,-400.0,0.00016712,2]
[378659548,1754946647383,-712.97,0.00016712,2]
[378659550,1754946647392,-400.0,0.00016712,2]
[378659551,1754946647401,-400.0,0.00016712,2]
[378659553,1754946647411,-400.0,0.00016712,2]
[378659555,1754946647420,-857.46,0.00016712,2]
[378659557,1754946647429,-400.0,0.00016712,2]
[378659559,1754946647438,-614.38,0.00016712,2]
[378659561,1754946647447,-400.0,0.00016712,2]
[378659563,1754946647458,-400.0,0.00016712,2]
[378659565,1754946647467,-441.76,0.00016712,2]
[378659567,1754946647476,-400.0,0.00016712,2]
[378659568,1754946647486,-400.0,0.00016712,2]
[378659570,1754946647495,-652.38,0.00016712,2]
[378659572,1754946647505,-519.25625084,0.00016712,2]
[378659574,1754946647514,-400.0,0.00016712,2]
[378659576,1754946647524,-400.0,0.00016712,2]
[378659578,1754946647534,-400.0,0.00016712,2]
[378659580,1754946647544,-576.35,0.00016712,2]
[378659582,1754946647553,-400.0,0.00016712,2]
[378659583,1754946647562,-400.0,0.00016712,2]
[378659585,1754946647571,-400.0,0.00016712,2]
[378659587,1754946647581,-400.0,0.00016712,2]
[378659589,1754946647590,-400.0,0.00016712,2]
[378659591,1754946647599,-189.32371021,0.00016712,2]
[378659593,1754946647610,-400.0,0.00016712,2]
[378659595,1754946647620,-400.0,0.00016712,2]
[378659597,1754946647629,-400.0,0.00016712,2]
[378659599,1754946647639,-487.78,0.00016712,2]
[378659601,1754946647648,-400.0,0.00016712,2]
[378659602,1754946647657,-667.78,0.00016712,2]
[378659604,1754946647667,-420.16,0.00016712,2]
[378659606,1754946647677,-1748.29,0.00016712,2]
[378659608,1754946647687,-400.0,0.00016712,2]
[378659610,1754946647696,-400.0,0.00016712,2]
[378659612,1754946647705,-400.0,0.00016712,2]
[378659614,1754946647715,-400.0,0.00016712,2]
[378659616,1754946647724,-400.0,0.00016712,2]
[378659617,1754946647734,-400.0,0.00016712,2]
[378659619,1754946647743,-400.0,0.00016712,2]
[378659621,1754946647754,-363.37428113,0.00016712,2]
[378659643,1754946647980,-151.07829573,0.00016338,2]
[378659645,1754946647990,-400.0,0.00016438,2]
[378659647,1754946647999,-400.0,0.00016438,2]
[378659649,1754946648009,-36.62571887,0.00016712,2]
[378659651,1754946648018,-400.0,0.00016712,2]
[378659653,1754946648027,-273.7459849,0.00016712,2]
[378659659,1754946648084,-548.7040151,0.00016712,2]
[378659661,1754946648093,-151.0,0.00016712,2]
[378659663,1754946648103,-400.0,0.00016712,2]
[378659664,1754946648113,-219.222952,0.00016712,2]
[378659666,1754946648122,-361.14427504,0.00016712,2]
[378659668,1754946648134,-38.85572496,0.00016712,2]
[378659670,1754946648144,-521.33,0.00016712,2]
[378659672,1754946648153,-498.78,0.00016712,2]
[378659674,1754946648162,-418.01,0.00016712,2]
[378659676,1754946648172,-400.0,0.00016712,2]
[378659678,1754946648181,-400.0,0.00016712,2]
[378659680,1754946648191,-400.0,0.00016712,2]
[378659682,1754946648201,-400.0,0.00016712,2]
[378659684,1754946648211,-780.87,0.00016712,2]
[378659685,1754946648221,-545.73,0.00016712,2]
[378659687,1754946648232,-400.0,0.00016712,2]
[378659689,1754946648242,-622.61,0.00016712,2]
[378659691,1754946648252,-400.0,0.00016712,2]
[378659693,1754946648261,-876.35,0.00016712,2]
[378659695,1754946648271,-400.0,0.00016712,2]
[378659697,1754946648280,-420.39,0.00016712,2]
[378659699,1754946648290,-69.49774334,0.00016712,2]
[378659702,1754946648307,-330.50225666,0.00016712,2]
[378659704,1754946648316,-400.0,0.00016712,2]
[378659705,1754946648326,-400.0,0.00016712,2]
[378659707,1754946648335,-400.0,0.00016712,2]
[378659709,1754946648346,-425.96,0.00016712,2]
[378659711,1754946648355,-329.95720009,0.00016712,2]
[378659713,1754946648368,-70.04279991,0.00016712,2]
[378659715,1754946648377,-400.0,0.00016712,2]
[378659717,1754946648387,-400.0,0.00016712,2]
[378659719,1754946648396,-400.0,0.00016712,2]
[378659721,1754946648405,-400.0,0.00016712,2]
[378659723,1754946648415,-384.94217734,0.00016712,2]
[378659725,1754946648430,-15.05782266,0.00016712,2]
[378659727,1754946648440,-400.0,0.00016712,2]
[378659729,1754946648450,-400.0,0.00016712,2]
[378659731,1754946648459,-384.00169267,0.00016712,2]
[378659750,1754946648647,-15.99830733,0.00016712,2]
[378659752,1754946648656,-630.86,0.00016712,2]
[378659754,1754946648666,-400.0,0.00016712,2]
[378659756,1754946648676,-400.0,0.00016712,2]
[378659758,1754946648687,-400.0,0.00016712,2]
[378659760,1754946648698,-469.79,0.00016712,2]
[378659762,1754946648707,-400.0,0.00016712,2]
[378659764,1754946648716,-400.0,0.00016712,2]
[378659766,1754946648726,-400.0,0.00016712,2]
[378659767,1754946648735,-400.0,0.00016712,2]
[378659768,1754946648744,-400.0,0.00016712,2]
[378659769,1754946648755,-452.29,0.00016712,2]
[378659770,1754946648765,-400.0,0.00016712,2]
[378659771,1754946648775,-400.0,0.00016712,2]
[378659772,1754946648784,-400.0,0.00016712,2]
[378659773,1754946648795,-400.0,0.00016712,2]
[378659774,1754946648804,-590.07,0.00016712,2]
[378659775,1754946648813,-400.0,0.00016712,2]
[378659776,1754946648824,-151.0,0.00016712,2]
[378659777,1754946648834,-471.63557902,0.00016712,2]
[378659778,1754946648844,-1001.52,0.00016712,2]
[378659779,1754946648854,-400.0,0.00016712,2]
[378659780,1754946648864,-676.95,0.00016712,2]
[378659781,1754946648874,-400.0,0.00016712,2]
[378659782,1754946648883,-400.0,0.00016712,2]
[378659783,1754946648891,-1263.35,0.00016712,2]
[378659784,1754946648899,-400.0,0.00016712,2]
[378659785,1754946648909,-400.0,0.00016712,2]
[378659786,1754946648919,-400.0,0.00016712,2]
[378659787,1754946648928,-421.48323178,0.00016712,2]
[378659788,1754946648938,-400.0,0.00016712,2]
[378659789,1754946648947,-400.0,0.00016712,2]
[378659790,1754946648956,-400.0,0.00016712,2]
[378659791,1754946648965,-400.0,0.00016712,2]
[378659792,1754946648974,-400.0,0.00016712,2]
[378659793,1754946648983,-400.0,0.00016712,2]
[378659794,1754946648992,-400.0,0.00016712,2]
[378659795,1754946649001,-400.0,0.00016712,2]
[378659796,1754946649010,-541.68,0.00016712,2]
[378659797,1754946649020,-400.0,0.00016712,2]
[378659798,1754946649029,-400.0,0.00016712,2]
[378659799,1754946649038,-400.0,0.00016712,2]
[378659800,1754946649048,-475.75,0.00016712,2]
[378659802,1754946649057,-400.0,0.00016712,2]
[378659803,1754946649066,-400.0,0.00016712,2]
[378659805,1754946649075,-457.84,0.00016712,2]
[378659806,1754946649084,-400.0,0.00016712,2]
[378659808,1754946649093,-739.07,0.00016712,2]
[378659810,1754946649102,-400.0,0.00016712,2]
[378659812,1754946649111,-298.91666441,0.00016712,2]
[378659814,1754946649124,-260.52333559,0.00016712,2]
[378659816,1754946649133,-533.43308993,0.00016712,2]
[378659818,1754946649142,-400.0,0.00016712,2]
[378659820,1754946649151,-641.08,0.00016712,2]
[378659822,1754946649160,-66.41357445,0.00016712,2]
[378659824,1754946649171,-664.70642555,0.00016712,2]
[378659826,1754946649181,-466.93,0.00016712,2]
[378659828,1754946649190,-400.0,0.00016712,2]
[378659830,1754946649199,-407.22,0.00016712,2]
[378659832,1754946649209,-372.02357445,0.00016712,2]
[378659837,1754946649250,-241.56642555,0.00016712,2]
[378659839,1754946649259,-55.33357445,0.00016712,2]
[378659842,1754946649273,-344.66642555,0.00016712,2]
[378659844,1754946649282,-400.0,0.00016712,2]
[378659846,1754946649291,-400.0,0.00016712,2]
[378659848,1754946649300,-400.0,0.00016712,2]
[378659850,1754946649309,-400.0,0.00016712,2]
[378659852,1754946649318,-58.0774008,0.00016712,2]
[378659957,1754946650307,-400.0,0.00016438,2]
[378659959,1754946650316,-476.78,0.00016438,2]
[378659961,1754946650325,-400.0,0.00016438,2]
[378659963,1754946650335,-400.0,0.00016438,2]
[378659965,1754946650344,-341.9225992,0.00016712,2]
[378659967,1754946650353,-400.0,0.00016712,2]
[378659969,1754946650363,-180.340457,0.00016712,2]
[378659971,1754946650371,-1106.55,0.00016712,2]
[378659973,1754946650380,-402.79,0.00016712,2]
[378659975,1754946650389,-180.340457,0.00016712,2]
[378659977,1754946650399,-539.72,0.00016712,2]
[378659979,1754946650408,-400.0,0.00016712,2]
[378659981,1754946650417,-555.22,0.00016712,2]
[378659983,1754946650426,-400.0,0.00016712,2]
[378659985,1754946650435,-465.81,0.00016712,2]
[378659987,1754946650444,-1559.5,0.00016712,2]
[378659989,1754946650453,-400.0,0.00016712,2]
[378659991,1754946650463,-400.0,0.00016712,2]
[378659993,1754946650472,-536.95,0.00016712,2]
[378659995,1754946650481,-400.0,0.00016712,2]
[378659997,1754946650490,-618.81,0.00016712,2]
[378659999,1754946650499,-400.0,0.00016712,2]
[378660001,1754946650508,-400.0,0.00016712,2]
[378660003,1754946650517,-400.0,0.00016712,2]
[378660005,1754946650526,-400.0,0.00016712,2]
[378660007,1754946650536,-624.99,0.00016712,2]
[378660009,1754946650545,-400.0,0.00016712,2]
[378660011,1754946650555,-400.0,0.00016712,2]
[378660013,1754946650564,-538.45,0.00016712,2]
[378660015,1754946650573,-400.0,0.00016712,2]
[378660017,1754946650583,-400.0,0.00016712,2]
[378660019,1754946650592,-400.0,0.00016712,2]
[378660021,1754946650601,-400.0,0.00016712,2]
[378660023,1754946650612,-400.0,0.00016712,2]
[378660025,1754946650621,-485.45,0.00016712,2]
[378660027,1754946650631,-400.0,0.00016712,2]
[378660029,1754946650640,-382.29837389,0.00016712,2]
[378660033,1754946650678,-193.99162611,0.00016712,2]
[378660036,1754946650687,-400.0,0.00016712,2]
[378660038,1754946650697,-613.65,0.00016712,2]
[378660040,1754946650705,-111.55837389,0.00016712,2]
[378660042,1754946650717,-316.78162611,0.00016712,2]
[378660044,1754946650726,-400.0,0.00016712,2]
[378660046,1754946650735,-265.60907091,0.00016712,2]
[378660048,1754946650747,-134.39092909,0.00016712,2]
[378660050,1754946650760,-141.90472537,0.00016712,2]
[378660052,1754946650770,-258.09527463,0.00016712,2]
[378660054,1754946650780,-400.0,0.00016712,2]
[378660056,1754946650789,-50.90714224,0.00016712,2]
[378660058,1754946650801,-455.37695136,0.00016712,2]
[378660060,1754946650812,-147.2659064,0.00016712,2]
[378660062,1754946650821,-347.93296425,0.00016712,2]
[378660072,1754946650901,-52.06703575,0.00016712,2]
[378660074,1754946650912,-819.77,0.00016712,2]
[378660076,1754946650921,-400.0,0.00016712,2]
[378660078,1754946650930,-184.49123947,0.00016712,2]
[378660080,1754946650942,-861.98110769,0.00016712,2]
[378660181,1754946651893,-400.0,0.00016438,2]
[378660183,1754946651902,-354.46779999,0.00016438,2]
[378660186,1754946651922,-370.62220001,0.00016438,2]
[378660188,1754946651932,-400.0,0.00016438,2]
[378660190,1754946651941,-151.0,0.00016465,2]
[378660192,1754946651951,-151.0,0.00016602,2]
[378660194,1754946651960,-151.07829569,0.00016704,2]
[378660196,1754946651969,-596.83765284,0.00016712,2]
[378660198,1754946651978,-400.0,0.00016712,2]
[378660200,1754946651989,-400.0,0.00016712,2]
[378660202,1754946651998,-400.0,0.00016712,2]
[378660204,1754946652007,-1494.30463569,0.00016712,2]
[378660206,1754946652019,-133.32536431,0.00016712,2]
[378660208,1754946652027,-400.0,0.00016712,2]
[378660213,1754946652119,-400.0,0.00016712,2]
[378660214,1754946652167,-151.0,0.00016712,2]
[378660215,1754946652176,-400.0,0.00016712,2]
[378660216,1754946652185,-446.70300155,0.00016712,2]
[378660217,1754946652194,-151.0,0.00016712,2]
[378660218,1754946652203,-400.0,0.00016712,2]
[378660219,1754946652212,-400.0,0.00016712,2]
[378660221,1754946652221,-400.0,0.00016712,2]
[378660223,1754946652230,-400.0,0.00016712,2]
[378660225,1754946652240,-400.0,0.00016712,2]
[378660227,1754946652249,-730.86,0.00016712,2]
[378660229,1754946652258,-400.0,0.00016712,2]
[378660231,1754946652268,-400.0,0.00016712,2]
[378660233,1754946652277,-1825.15,0.00016712,2]
[378660235,1754946652287,-574.12,0.00016712,2]
[378660237,1754946652296,-466.02,0.00016712,2]
[378660238,1754946652305,-154.149787,0.00016712,2]
[378660240,1754946652314,-499.08,0.00016712,2]
[378660242,1754946652323,-648.66,0.00016712,2]
[378660244,1754946652332,-404.96,0.00016712,2]
[378660246,1754946652342,-400.0,0.00016712,2]
[378660249,1754946652352,-400.0,0.00016712,2]
[378660251,1754946652363,-529.5,0.00016712,2]
[378660253,1754946652372,-557.91,0.00016712,2]
[378660254,1754946652382,-151.0,0.00016712,2]
[378660257,1754946652392,-152.199088,0.00016712,2]
[378660259,1754946652401,-400.0,0.00016712,2]
[378660261,1754946652410,-482.05,0.00016712,2]
[378660263,1754946652420,-151.0,0.00016712,2]
[378660265,1754946652430,-551.92,0.00016712,2]
[378660267,1754946652439,-400.0,0.00016712,2]
[378660269,1754946652449,-400.0,0.00016712,2]
[378660271,1754946652459,-685.689173,0.00016712,2]
[378660273,1754946652468,-151.0,0.00016712,2]
[378660275,1754946652478,-151.0,0.00016712,2]
[378660277,1754946652487,-400.0,0.00016712,2]
[378660279,1754946652496,-685.689173,0.00016712,2]
[378660281,1754946652505,-400.0,0.00016712,2]
[378660282,1754946652516,-421.24,0.00016712,2]
[378660283,1754946652525,-786.74,0.00016712,2]
[378660284,1754946652534,-451.59,0.00016712,2]
[378660285,1754946652544,-924.18,0.00016712,2]
[378660286,1754946652553,-400.0,0.00016712,2]
[378660287,1754946652563,-449.4,0.00016712,2]
[378660288,1754946652572,-725.28,0.00016712,2]
[378660289,1754946652582,-400.0,0.00016712,2]
[378660290,1754946652591,-400.0,0.00016712,2]
[378660291,1754946652601,-400.0,0.00016712,2]
[378660292,1754946652611,-594.38,0.00016712,2]
[378660293,1754946652620,-400.0,0.00016712,2]
[378660294,1754946652629,-400.0,0.00016712,2]
[378660295,1754946652638,-400.0,0.00016712,2]
[378660296,1754946652647,-400.0,0.00016712,2]
[378660297,1754946652657,-400.0,0.00016712,2]
[378660298,1754946652667,-400.0,0.00016712,2]
[378660299,1754946652677,-555.92,0.00016712,2]
[378660300,1754946652687,-400.0,0.00016712,2]
[378660301,1754946652697,-614.43146244,0.00016712,2]
[378660302,1754946652711,-272.82853756,0.00016712,2]
[378660303,1754946652721,-578.84,0.00016712,2]
[378660304,1754946652730,-452.88,0.00016712,2]
[378660305,1754946652740,-400.0,0.00016712,2]
[378660306,1754946652749,-400.0,0.00016712,2]
[378660307,1754946652764,-4.25146254,0.00016712,2]
[378660308,1754946652874,-487.14853746,0.00016712,2]
[378660309,1754946652884,-687.55,0.00016712,2]
[378660310,1754946652893,-463.77,0.00016712,2]
[378660311,1754946652903,-184.3154304,0.00016712,2]
[378660312,1754946652939,511.99997,0.00015539,2]
[378660313,1754946652957,-514.7145696,0.00016712,2]
[378660314,1754946652966,-475.89319846,0.00016712,2]
[378660315,1754946652977,-75.23680154,0.00016712,2]
[378660316,1754946652986,-1357.33,0.00016712,2]
[378660317,1754946652996,-153.03320846,0.00016712,2]
[378660318,1754946653047,-246.96679154,0.00016712,2]
[378660319,1754946653056,-53.03320846,0.00016712,2]
[378660320,1754946653067,-346.96679154,0.00016712,2]
[378660321,1754946653077,-471.15,0.00016712,2]
[378660322,1754946653087,-400.0,0.00016712,2]
[378660323,1754946653096,-400.0,0.00016712,2]
[378660324,1754946653106,-694.87,0.00016712,2]
[378660325,1754946653116,-1016.08,0.00016712,2]
[378660326,1754946653125,-151.0,0.00016712,2]
[378660327,1754946653135,-433.38,0.00016712,2]
[378660328,1754946653145,-151.0,0.00016712,2]
[378660329,1754946653155,-400.0,0.00016712,2]
[378660330,1754946653164,-665.35,0.00016712,2]
[378660331,1754946653173,-523.01,0.00016712,2]
[378660332,1754946653181,-1280.57,0.00016712,2]
[378660333,1754946653191,-436.98,0.00016712,2]
[378660334,1754946653200,-400.0,0.00016712,2]
[378660335,1754946653210,-400.0,0.00016712,2]